Cogmind - Beta 13 @@@ ROGUE MODE // 2024.04.03 @ 23:01:38 Player: Lunace Result: Destroyed by Y-54 Guardian with Gatling Laser Performance ------------- Evolutions (3) 1500 Regions Visited (7) 1400 Robots Destroyed (36) 180 Value Destroyed (1195) 1195 Prototype IDs (3) 60 Alien Tech Used (0) 0 Bonus (-4) -4 TOTAL SCORE: 4331 Bonus ------- Follower Combat Kills 21 Friendly Fire -25 Cogmind --------- Core Integrity 0/700 Matter 282/300 Energy 100/100 System Corruption 5% Temperature Cool (6) Movement Walking (120) Location -7/Lower Caves Parts ------- > --- POWER (1) -------- (None) > --- PROPULSION (4) --- Aluminum Leg > --- UTILITY (4) ------ (None) > --- WEAPON (4) ------- Precision Assault Rifle > --- INVENTORY (5) ---- Light Deuterium Engine Compact Battery (7) Compact Matter Pod (59) Power Maul Peak State ------------ > --- POWER ------------ Cooled Ion Engine > --- PROPULSION ------- Light Treads Light Treads Light Treads > --- UTILITY ---------- Large Storage Unit Structural Scanner > --- WEAPON ----------- Improved Light Cannon Advanced EMP Blaster Rocket Launcher Rocket Launcher > --- INVENTORY -------- Cooled Ion Engine Humpback Large Battery Large Matter Pod Large Matter Pod Large Matter Pod High-capacity Matter Pod High-capacity Matter Pod Terrain Scan Processor Small Laser Small Laser [Rating: 19] Favorites ----------- Power Cooled Ion Engine Engine Cooled Ion Engine Propulsion Light Treads Treads Light Treads Leg Aluminum Leg Hover Unit Improved Hover Unit Flight Unit VTOL Module Utility Large Storage Unit Device Structural Scanner Storage Large Storage Unit Weapon Rocket Launcher Energy Gun Medium Laser Energy Cannon Improved EM Pulse Cannon Ballistic Gun Light Assault Rifle Ballistic Cannon Improved Light Cannon Launcher Rocket Launcher Impact Weapon Heavy Hammer Build | -11 -10 -10 -10 -9 -8 -7 -7 ------- Run | Yrd Mat Min Exi Min Mat Fac Low Slots Evolved 6 | . . . . . 4 2 . Power . | . . . . . . . . Propulsion 2 | . . . . . 2 . . Utility 2 | . . . . . . 2 . Weapon 2 | . . . . . 2 . . Parts Attached 44 | 5 7 1 . . 9 20 2 Power 4 | 1 2 . . . . 1 . Engine 4 | 1 2 . . . . 1 . Core . | . . . . . . . . Reactor . | . . . . . . . . Propulsion 10 | 2 1 . . . 3 2 2 Treads 7 | 2 1 . . . 3 1 . Leg 1 | . . . . . . . 1 Wheel . | . . . . . . . . Hover 1 | . . . . . . 1 . Flight 1 | . . . . . . . 1 Utility 9 | . 2 1 . . 1 5 . Device 2 | . . 1 . . . 1 . Storage 7 | . 2 . . . 1 4 . Processor . | . . . . . . . . Hackware . | . . . . . . . . Protection . | . . . . . . . . Artifact . | . . . . . . . . Weapon 21 | 2 2 . . . 5 12 . Energy Gun 4 | 1 . . . . . 3 . Energy Cannon 3 | . . . . . . 3 . Ballistic Gun 2 | 1 . . . . . 1 . Ballistic Cannon 1 | . . . . . 1 . . Launcher 10 | . 2 . . . 4 4 . Special Weapon . | . . . . . . . . Impact Weapon 1 | . . . . . . 1 . Slashing Weapon . | . . . . . . . . Piercing Weapon . | . . . . . . . . Special Melee Weapon . | . . . . . . . . Unidentified Prototypes 3 | . 1 . . . 1 1 . Parts Lost 23 | . . . . . 3 16 4 Power 2 | . . . . . . 2 . Propulsion 7 | . . . . . 2 3 2 Utility 2 | . . . . . . 2 . Weapon 12 | . . . . . 1 9 2 Highest Loss Streak 5 | . . . . . 3 5 4 To Critical Strikes . | . . . . . . . . Average Slot Usage (%) 75 | . 97 100 100 100 81 43 27 Engine 9 | . 13 14 14 14 9 3 . Treads 20 | . 28 28 28 28 24 9 . Device 4 | . . 2 14 14 7 4 . Storage 13 | . 25 25 14 14 9 6 . Energy Gun 3 | . 6 . . . . 8 . Ballistic Gun 2 | . 6 . . . . . 7 Ballistic Cannon 1 | . . . . . 5 1 . Launcher 17 | . 14 28 28 28 26 5 12 Naked Turns 23 | . . . . . . 23 . Heaviest Build 231 | 6 41 41 37 37 45 231 12 Greatest Support 62 | 40 40 40 40 40 62 62 10 Greatest Overweight (x) 76 | . 1 1 . . 1 76 3 Average Overweight (x) . | . . . . . . . . Largest Inventory Capacity 35 | 5 15 15 15 15 15 35 5 Average Capacity 12 | 5 13 15 15 15 15 13 5 Most Carried 15 | 4 15 13 15 15 14 12 5 Average Carried 8 | 1 8 12 13 15 12 6 3 Final Capacity 15 | 5 15 15 15 15 15 5 5 Final Carried 15 | 2 12 12 15 15 13 3 4 Class Distribution -------------------- 62% | Mutant 20% | Skirmisher 13% | Bomber 3% | Hauler-Mutant Dominant Class ---------------- Mutant | -10/Materials Mutant | -10/Mines Mutant | -10/Exiles Mutant | -9/Mines Skirmisher | -8/Materials Mutant | -7/Factory Bomber | -7/Lower Caves Resources | -11 -10 -10 -10 -9 -8 -7 -7 ----------- Run | Yrd Mat Min Exi Min Mat Fac Low Matter Collected 2111 | 226 210 32 578 20 307 580 158 Remotely . | . . . . . . . . Salvage Created 1172 | . 381 . . . 179 371 241 Parts 55 | . 20 . . . 15 10 10 Haulers Intercepted 1 | . . . . . 1 . . Recyclers Shooed . | . . . . . . . . Parts Field Recycled . | . . . . . . . . Retrieved Matter . | . . . . . . . . Parts Self-Destructed 4 | . . . . . . . 4 Prevented 3 | . . . . . . . 3 Kills | -11 -10 -10 -10 -9 -8 -7 -7 ------- Run | Yrd Mat Min Exi Min Mat Fac Low Combat Hostiles Destroyed 24 | . 8 . . . 7 5 4 Guns 9 | . 5 . . . . 2 2 Cannons 1 | . . . . . 1 . . AOE 11 | . 2 . . . 6 1 2 Classes Destroyed 10 | . 5 . . . 4 1 . Worker 5 | . 1 . . . 4 . . Hauler 1 | . . . . . 1 . . Recycler 2 | . 1 . . . . 1 . Mechanic 1 | . 1 . . . . . . Watcher 3 | . 2 . . . . 1 . Grunt 18 | . 8 . . . 3 3 4 Brawler 1 | . . . . . 1 . . Duelist 1 | . . . . . . 1 . Sentry 3 | . . . . . 2 1 . Hunter 1 | . . . . . 1 . . Best Kill Streak 8 | . 5 . . . 8 4 4 Combat Bots Only 4 | . 2 . . . 4 3 4 Max Kills in Single Turn 2 | . 2 . . . 2 2 1 Gunslinging . | . . . . . . . . Exploded 2 | . 1 . . . 2 1 1 Melee . | . . . . . . . . Uniques/NPCs Destroyed . | . . . . . . . . Combat | -11 -10 -10 -10 -9 -8 -7 -7 -------- Run | Yrd Mat Min Exi Min Mat Fac Low Hostile Shots Fired 345 | . 46 1 . . 26 219 53 Missed 124 | . 13 1 . . 6 85 19 Damage Taken 3415 | . 408 . . . 597 1981 429 Core 813 | . 58 . . . 55 572 128 Absorbed by Shields . | . . . . . . . . Core Remaining (%) 88 | 100 . . . 76 90 . . Volleys Fired 78 | . 33 1 . . 14 19 11 Largest 4 | . 2 2 . . 4 4 2 Hottest 207 | . 70 66 . . 132 207 66 Shots Fired 162 | . 66 2 . . 39 39 16 Gun 100 | . 56 . . . . 34 10 Cannon 15 | . . . . . 11 4 . Launcher 47 | . 10 2 . . 28 1 6 Special . | . . . . . . . . Kinetic 52 | . 28 . . . 11 3 10 Thermal 59 | . 28 . . . . 31 . Explosive 41 | . 10 2 . . 28 1 . Electromagnetic 10 | . . . . . . 4 6 Robot Hit Streak 9 | . 9 . . . 7 9 4 Robot Miss Streak 4 | . 4 . . . 3 3 2 Penetration Max . | . . . . . . . . Secondary Targets 3 | . 2 . . . . 1 . Max Gunslinging Chain 1 | . 1 . . . . 1 . Shots Hit Robots 104 | . 41 . . . 21 33 9 Core Hits 75 | . 24 . . . 27 15 9 Critical Kills . | . . . . . . . . Critical Parts Destroyed 1 | . . . . . . 1 . Critical Strikes 3 | . 2 . . . . 1 . Burn 2 | . 2 . . . . . . Smash 1 | . . . . . . 1 . Melee Attacks 5 | . . . . . . 5 . Impact 5 | . . . . . . 5 . Slashing . | . . . . . . . . Piercing . | . . . . . . . . Sneak Attacks . | . . . . . . . . Combat Hostiles . | . . . . . . . . Follow-up Attacks . | . . . . . . . . Damage Inflicted 3138 | . 958 25 . . 1163 552 440 Guns 938 | . 448 . . . . 333 157 Cannons 174 | . . . . . 150 24 . Explosions 1919 | . 510 25 . . 1011 90 283 Melee 105 | . . . . . . 105 . Ramming 2 | . . . . . 2 . . Kinetic 499 | . 157 . . . 150 35 157 Thermal 629 | . 291 . . . . 298 40 Explosive 1636 | . 510 25 . . 1011 90 . Electromagnetic 267 | . . . . . . 24 243 Impact 105 | . . . . . . 105 . Slashing . | . . . . . . . . Piercing . | . . . . . . . . Highest Corruption 5 | . . . . . . 4 5 Average Corruption 4 | . . . . . . 3 4 Corruption Purged . | . . . . . . . . Corruption Blocked . | . . . . . . . . Effects 9 | . . . . . . 3 6 Message Errors 1 | . . . . . . 1 . Matter Fused 3 | . . . . . . . 3 Heat Flow Errors 1 | . . . . . . 1 . Parts Rejected 1 | . . . . . . 1 . Data Loss (minor) 1 | . . . . . . . 1 Misfires 1 | . . . . . . . 1 Alerts 1 | . . . . . . . 1 Overload Shots . | . . . . . . . . Overflow Damage 91 | . 29 . . . 41 21 . Projectiles . | . . . . . . . . Explosions 70 | . 29 . . . 41 . . Melee 21 | . . . . . . 21 . Knockbacks 3 | . . . . . 3 . . Impact . | . . . . . . . . Kinetic 3 | . . . . . 3 . . Secondary . | . . . . . . . . Self-Inflicted Damage 197 | . . . . . 177 . 20 Shots 5 | . . . . . 4 . 1 Rammed 1 | . . . . . 1 . . Targets Rammed 1 | . . . . . 1 . . Kicked . | . . . . . . . . Crushed . | . . . . . . . . Highest Temperature 356 | . 242 . . . 125 356 2 Average Temperature 99 | . 112 . . . 44 122 2 Received Heat Transfer 981 | . 228 . . . 90 438 225 Siege Activations . | . . . . . . . . Robots Corrupted . | . . . . . . . . Combat Hostiles . | . . . . . . . . Parts Fried 1 | . . . . . . 1 . Impact Corruptions 1 | . . . . . . 1 . Robots Melted 2 | . 1 . . . . 1 . Combat Hostiles 2 | . 1 . . . . 1 . Parts Melted 5 | . 2 . . . . 3 . Heat Transferred 1733 | . 999 . . . . 684 50 Parts Sabotaged . | . . . . . . . . Parts Stolen . | . . . . . . . . Parts Stripped . | . . . . . . . . Power Chain Reactions 1 | . . . . . . . 1 Alert | -11 -10 -10 -10 -9 -8 -7 -7 ------- Run | Yrd Mat Min Exi Min Mat Fac Low Peak Influence 365 | . 263 134 . . 365 244 . Initial 165 | . . 42 . . . 165 . Average 119 | . 103 100 . . 131 169 . Maximum Alert Level 1 | . 1 . . . 1 1 . Low Security (%) 78 | 100 92 100 . 100 76 51 . Level 1 21 | . 7 . . . 23 48 . Level 2 . | . . . . . . . . Level 3 . | . . . . . . . . Level 4 . | . . . . . . . . Level 5 . | . . . . . . . . High Security . | . . . . . . . . Max Security . | . . . . . . . . Squads Dispatched 4 | . 1 . . . . 3 . Investigation 1 | . 1 . . . . . . Extermination 1 | . . . . . . 1 . Reinforcement . | . . . . . . . . Assault . | . . . . . . . . Garrison 2 | . . . . . . 2 . Intercept . | . . . . . . . . Searches Triggered . | . . . . . . . . Construction Impeded . | . . . . . . . . Haulers Reinforced . | . . . . . . . . Active Scanning Responses . | . . . . . . . . Cargo Convoy Interrupts . | . . . . . . . . Stealth | -11 -10 -10 -10 -9 -8 -7 -7 --------- Run | Yrd Mat Min Exi Min Mat Fac Low Distress Signals 3 | . . . . . 3 . . Communications Jammed . | . . . . . . . . Distress Signals . | . . . . . . . . Times Spotted 53 | . 12 3 . . 11 13 14 Peak Tracking Total 7 | . 2 3 . . 4 7 4 Tactical Retreats 8 | . . . . . 1 3 4 Traps | -11 -10 -10 -10 -9 -8 -7 -7 ------- Run | Yrd Mat Min Exi Min Mat Fac Low Traps Triggered . | . . . . . . . . Indirectly . | . . . . . . . . Trap Hack Attempts . | . . . . . . . . Triggered . | . . . . . . . . Disarmed . | . . . . . . . . Reprogrammed . | . . . . . . . . Reused . | . . . . . . . . Traps Extracted . | . . . . . . . . Installed . | . . . . . . . . Triggered . | . . . . . . . . Machines | -11 -10 -10 -10 -9 -8 -7 -7 ---------- Run | Yrd Mat Min Exi Min Mat Fac Low Machines Disabled 5 | . 2 . . . 2 1 . Max in Single Turn 1 | . 1 . . . 1 1 . Machines Repaired . | . . . . . . . . Machines Dismantled . | . . . . . . . . Machines Sabotaged . | . . . . . . . . Overloaded Fab Kills . | . . . . . . . . Hacking | -11 -10 -10 -10 -9 -8 -7 -7 --------- Run | Yrd Mat Min Exi Min Mat Fac Low Machines Accessed 6 | . 1 . 1 . 4 . . Terminals 4 | . 1 . . . 3 . . Fabricators . | . . . . . . . . Repair Stations . | . . . . . . . . Recycling Units 1 | . . . . . 1 . . Scanalyzers . | . . . . . . . . Garrison Access . | . . . . . . . . Total Hacks 14 | . 3 . 2 . 9 . . Successful 11 | . 3 . 2 . 6 . . Failed 3 | . . . . . 3 . . Catastrophic 1 | . . . . . 1 . . Database Lockouts . | . . . . . . . . Manual 1 | . . . . . . 1 . Terminals 10 | . 3 . . . 7 . . Fabricators . | . . . . . . . . Repair Stations . | . . . . . . . . Recycling Units 2 | . . . . . 2 . . Scanalyzers . | . . . . . . . . Garrison Access . | . . . . . . . . Terminal Hacks 9 | . 3 . 2 . 4 . . Record 4 | . 1 . 2 . 1 . . Alert Level 3 | . 1 . . . 2 . . Security Status 1 | . . . . . 1 . . Transport Status 1 | . 1 . . . . . . Fabricator Hacks . | . . . . . . . . Repair Station Hacks . | . . . . . . . . Recycling Unit Hacks 2 | . . . . . 2 . . Process 1 | . . . . . 1 . . Retrieve Matter 1 | . . . . . 1 . . Scanalyzer . | . . . . . . . . Garrison Access Hacks . | . . . . . . . . Unauthorized Hacks . | . . . . . . . . Terminals . | . . . . . . . . Fabricators . | . . . . . . . . Repair Stations . | . . . . . . . . Recycling Units . | . . . . . . . . Scanalyzers . | . . . . . . . . Garrison Access . | . . . . . . . . Data Cores Recovered . | . . . . . . . . Used . | . . . . . . . . Hacking Detections 6 | . 1 . . . 4 1 . Full Trace Events 1 | . 1 . . . . . . Feedback Events . | . . . . . . . . Feedback Blocked . | . . . . . . . . Robot Schematics Acquired . | . . . . . . . . Robots Built . | . . . . . . . . Authchips . | . . . . . . . . Time . | . . . . . . . . Total Robot Build Rating . | . . . . . . . . Part Schematics Acquired . | . . . . . . . . Parts Built . | . . . . . . . . Authchips . | . . . . . . . . Time . | . . . . . . . . Total Part Build Rating . | . . . . . . . . Parts Repaired . | . . . . . . . . Time . | . . . . . . . . Parts Recycled . | . . . . . . . . Recycled Matter 6 | . . . . . 6 . . Retrieved Matter 6 | . . . . . 6 . . Retrieved Components . | . . . . . . . . Parts Scanalyzed . | . . . . . . . . Part Schematics Acquired . | . . . . . . . . Parts Damaged . | . . . . . . . . Bothacking | -11 -10 -10 -10 -9 -8 -7 -7 ------------ Run | Yrd Mat Min Exi Min Mat Fac Low Used RIF Installer . | . . . . . . . . Robots Hacked . | . . . . . . . . Non-combat . | . . . . . . . . Combat . | . . . . . . . . Robot Hacks Applied . | . . . . . . . . Relay Couplers Released . | . . . . . . . . Fabnet Peak Effective % . | . . . . . . . . Robots Rewired . | . . . . . . . . Allies Hacked . | . . . . . . . . Hacks Repelled . | . . . . . . . . Allies | -11 -10 -10 -10 -9 -8 -7 -7 -------- Run | Yrd Mat Min Exi Min Mat Fac Low Total Allies 3 | . . 3 . . . . . Largest Group 3 | . . 3 3 3 3 . . Highest-Rated Group 40 | . . 40 40 40 40 . . Highest-Rated Ally 16 | . . 16 16 16 16 . . Total Orders . | . . . . . . . . Ally Attacks 37 | . . 7 . . 30 . . Total Damage 381 | . . 71 . . 310 . . Kills 5 | . . 3 . . 2 . . Allies Corrupted . | . . . . . . . . Allies Melted . | . . . . . . . . Intel | -11 -10 -10 -10 -9 -8 -7 -7 ------- Run | Yrd Mat Min Exi Min Mat Fac Low Robot Analysis Total . | . . . . . . . . Derelict Logs Recovered . | . . . . . . . . Drone Launches . | . . . . . . . . Drone Recoveries . | . . . . . . . . Exploration | -11 -10 -10 -10 -9 -8 -7 -7 ------------- Run | Yrd Mat Min Exi Min Mat Fac Low Turns Passed 2221 | 112 575 124 308 34 367 493 208 Spaces Moved 1126 | 72 222 52 189 19 189 224 159 Core 96 | 13 . . . . . 77 6 Treads 870 | 59 222 52 189 19 189 140 . Legs 2 | . . . . . . . 2 Wheels . | . . . . . . . . Hover 127 | . . . . . . 7 120 Flight 31 | . . . . . . . 31 Fastest Speed 35 | 50 160 160 160 160 152 50 35 Average Speed 165 | 140 200 223 160 160 160 172 108 Slowest Speed 3850 | 160 240 240 160 160 240 3850 200 Overloaded Moves . | . . . . . . . . Propulsion Burnouts . | . . . . . . . . Robots Hopped . | . . . . . . . . Cave-ins Triggered . | . . . . . . . . Exploration Rate (%) 21 | 6 29 15 56 9 32 11 17 Regions Visited 7 Branch Regions 4 Pre-discovered Areas . | . . . . . . . . Known Exits Taken . | . . . . . . . . Unknown Exits Taken 7 | 1 1 1 1 1 1 1 . Scrap Searched 3 | . . 1 . 1 . . 1 Spaces Dug . | . . . . . . . . Terrain Destroyed 289 | . 52 16 . . 206 8 7 Melee . | . . . . . . . . Projectile 1 | . . . . . 1 . . AOE 288 | . 52 16 . . 205 8 7 Terrain Rammed . | . . . . . . . . Walls Destroyed . | . . . . . . . . Machines Disabled . | . . . . . . . . Actions | -11 -10 -10 -10 -9 -8 -7 -7 --------- Run | Yrd Mat Min Exi Min Mat Fac Low Total 1357 | 83 297 59 196 23 226 292 181 Wait 14 | . 1 4 . 5 . . 4 Move 1119 | 71 221 51 188 18 188 223 159 Hop . | . . . . . . . . Pick Up 62 | 7 23 1 5 . 7 15 4 Fast Attach . | . . . . . . . . Attach 41 | 5 5 1 . . 8 20 2 Detach 3 | . 1 . . . 2 . . Swap 3 | . 2 . . . 1 . . Drop 31 | . 11 1 3 . 5 10 1 Fire 78 | . 33 1 . . 14 19 11 Melee 5 | . . . . . . 5 . Ram . | . . . . . . . . Kick . | . . . . . . . . Crush 1 | . . . . . 1 . . Escape Stasis . | . . . . . . . . Rewire . | . . . . . . . . Trap . | . . . . . . . . Miscellaneous . | . . . . . . . . Route ------- -11/Scrapyard -10/Materials (discovered 2 exits: [*Min x2]) -10/Mines -10/Exiles (discovered 2 exits: [*Min x2]) -9/Mines -8/Materials -7/Factory -7/Lower Caves History --------- Turn | Location | Event 2 | -11/Scrapyard | Met Revision 17 7 | -11/Scrapyard | Discovered new exit (range 14) 113 | -11/Scrapyard | Entered Materials 180 | -10/Materials | Discovered new exit (range 16) 318 | -10/Materials | Discovered new exit (range 9) 326 | -10/Materials | Build established: Mutant 688 | -10/Materials | Entered Mines 693 | -10/Mines | Assisted by bots powering up and referring to "LRC-V3" 776 | -10/Mines | Discovered new exit (range 8) 812 | -10/Mines | Entered Exiles 812 | -10/Exiles | Accompanied by 3 allies 835 | -10/Exiles | Discovered new exit (range 15) 854 | -10/Exiles | Met 8R-AWN 880 | -10/Exiles | Met EX-HEX 970 | -10/Exiles | Met EX-DEC 1107 | -10/Exiles | Discovered new exit (range 10) 1120 | -10/Exiles | Entered Mines 1120 | -9/Mines | Accompanied by 3 allies 1133 | -9/Mines | Discovered new exit (range 9) 1154 | -9/Mines | Entered Materials 1154 | -8/Materials | Accompanied by 3 allies 1154 | -8/Materials | Evolved 4 slots: Propulsion x2, Weapon x2 1475 | -8/Materials | Lost 3 parts (2n1w) 1493 | -8/Materials | Discovered new exit (range 15) 1521 | -8/Materials | Entered Factory 1521 | -7/Factory | Evolved 2 slots: Utility x2 1731 | -7/Factory | Lost 5 parts (1p2n2w) 1866 | -7/Factory | Lost 4 parts (1n1u2w) 1885 | -7/Factory | Garrison activated, responded to threat 1923 | -7/Factory | Core integrity fell below 50% 1953 | -7/Factory | Lost 3 parts (3w) 1958 | -7/Factory | Core integrity fell below 20% 2006 | -7/Factory | Discovered new exit (range 6) 2014 | -7/Factory | Entered Lower Caves 2213 | -7/Lower Caves | Attracted the attention of an 0b10 checkpoint 2222 | -7/Lower Caves | Destroyed by Y-54 Guardian with Gatling Laser Last Messages --------------- malfunctions. EMP Blaster destroyed. G-47 Trooper destroyed. Corrupted Imp. Heat Sink self-destruct mechanism malfunctions. Acquired 28 matter. Acquired Aluminum Leg. Corrupted Carbon-fiber Leg fries itself beyond repair. Acquired 99 matter. Y-54 Guardian: "INTERCEPTING UNREGISTERED DERELICT." Searching scrap... Found Power Maul. Found Com. Battery. Found 12 Matter. Acquired Power Maul. Dropped Visual Processing Unit. Acquired Com. Battery. VTOL Module destroyed. Map ----- +----------------------------------------------------+ | ?????????????????????????????????????????????????? | | ?????????????????????????????????????????????????? | | ?????????????????????????????????????????????????? | | ?????????????????????????????????????????????????? | | ?????????????????????????????????????????????????? | | ?????????????????????????????????????????????????? | | ??????????????????????????????????????????#####??? | | ?????????????????????????????????????????## ##?? | | ????????????????????????????????????????## #?? | | ????????????????????????????????????????# #?? | | ????????????????????????????????????????# !#?? | | ????????????????????????????????????????# ##?? | | ?????????????????????????#??????????????# ###?# | | ?????????????????????#### ######???????## ## ## | | ?????????????????????# # #??????## # | | ?????????????????????# #??????# | | ????????????????????## #??? ### # | | ???????????????????## Y #?? ### # | | ???????????????????# ### #?## ## | | ???????????????????? #??## #? | | ????????????????????? #???# ## ## | | ?????????????????????# #???## ## # | | ????????????????????## #????## ## | | ???????????????????## % #?????# #### | | ???????????????????# #?????#### ###??## | | ???????????????????# @ ##???## # ####### | | ???????????????????## ###! #??## # | | ????????????????????????# ##??# % [% | | ????????????????????# ### %####???# #### | | ????????????????????# #??????# ##?## | | ????????????????????# ### #???##### ##?? | | ????????????????????# ### #???# # # ##? | | ????????????????##### ###### "" ## | | ??????????? ! | | ?????????????# [ | | ?????????????####% % ######"#"[ | | ????????????????## #####????##### ## | | ????????????????## #?????????????# ##?# | | ???????????????## #??????????#### ##??? | | ??????????????## ????????#### ##???? | | ??????????????# ???????## ##????? | | ??????????????# ???????## #######? | | ??????????????# ?????### ### ## | | ????????????????# ####### | | ????????????????# | | ????????????????# ##### #### | | ????????????????# #???## ## ##??## ## | | ??????????????? #????####### #????# ### | | ?????????????? #??????????## #????## ##?# | | ?????????????#######???????????### ##?????####??# | +----------------------------------------------------+ Best States ------------- Heat Dissipation 34 Energy Generation 14 Energy Capacity 300 Matter Stores 500 Matter Capacity 500 Sight Range 16 Terrain Scan Density 10 Evasion (%) 63 Recoil Reduction 3 Item Schematics ----------------- None Robot Schematics ------------------ None Fabricated ------------ Nothing Alien Tech Used ----------------- None Achievements -------------- None Challenges ------------ None Game ------ Seed FissionCloakingInsulator Manual? 0 Play Time 00:27:50 Cumulative 13.8 hours Start 2024.04.03 @ 22:33:42 End 2024.04.03 @ 23:01:38 Sessions 1 Manual Loads 0 Difficulty Rogue Special Mode None Game No. 15 Rogue 10 Adventurer 5 Explorer 0 Win Type - Total 1 Types 1/0/0/0/0/0/0/0/0 Lore% 9 Gallery% 23 Achievement% 25 Wizard Run 0 Options --------- Layout 1 ASCII 0 Keyboard 0 Movement Mouse Keybinds 0 Fullscreen 1 Font 24/Terminus Map View 50x35 Zoom Use 0% Tactical HUD 0 Map Filters NONE Filters NONE Steam 1 RUN: 36e25fec-e0a1-4cee-af0a-b0a14abc0290